fUST/lending_fUST_20250411
["ID","MTS","AMOUNT","RATE_DAILY","PERIOD"]
[357714421,1744383017181,-500.0,0.00036708,5]
[357714422,1744383017206,-2100.0,0.00036736,7]
[357714423,1744383017232,-1000.0,0.00036792,7]
[357714424,1744383017256,-885.69125026,0.00036829,7]
[357714425,1744383017282,-2100.0,0.0003695,7]
[357714426,1744383017307,-156.49085179,0.00037016,2]
[357714427,1744383017334,-1732.18264264,0.00037314,13]
[357714428,1744383017360,-2100.0,0.00037327,7]
[357714429,1744383017385,-2000.0,0.000375,15]
[357714430,1744383017411,-2000.0,0.000375,15]
[357714431,1744383017438,-2000.0,0.000375,15]
[357714432,1744383017464,-2000.0,0.000375,15]
[357714433,1744383017489,-2000.0,0.000375,15]
[357714434,1744383017516,-2000.0,0.000375,15]
[357714435,1744383017540,-2000.0,0.000375,15]
[357714436,1744383017566,-2000.0,0.000375,120]
[357714437,1744383017591,-2000.0,0.000375,7]
[357714438,1744383017616,-2000.0,0.000375,15]
[357714439,1744383017642,-2000.0,0.000375,15]
[357714440,1744383017671,-1361.95,0.000375,7]
[357714441,1744383017699,-5000.0,0.00037509,2]
[357714442,1744383017727,-2100.0,0.00037564,7]
[357714443,1744383017755,-1005.96875867,0.000378,2]
[357714444,1744383017781,-2100.0,0.00037814,7]
[357714445,1744383017807,-1000.0,0.00037889,7]
[357714446,1744383017833,-151.0,0.00037923,14]
[357714447,1744383017859,-2100.0,0.00037985,7]
[357714448,1744383017884,-2100.0,0.00037992,7]
[357714449,1744383017910,-300.0,0.00038,120]
[357714450,1744383017935,-3288.79,0.00038,30]
[357714451,1744383017962,-1732.18264264,0.00038072,14]
[357714452,1744383017987,-500.0,0.00038108,7]
[357714453,1744383018012,-200.0,0.0003826,50]
[357714454,1744383018040,-2100.0,0.00038307,7]
[357714455,1744383018076,-156.49085179,0.00038321,2]
[357714456,1744383018110,-2519.58309749,0.00038346,2]
[357714457,1744383018144,-1000.0,0.00038356,7]
[357714458,1744383018175,-407.48564019,0.00038356,60]
[357714459,1744383018206,-166.0,0.00038356,2]
[357714460,1744383018236,-809.57644906,0.00038356,2]
[357714461,1744383018265,-210.55241249,0.00038356,5]
[357714462,1744383018297,-182.54121064,0.00038356,5]
[357714463,1744383018325,-500.0,0.00038411,7]
[357714464,1744383018355,-2000.0,0.000385,15]
[357714465,1744383018383,-500.0,0.00038542,7]
[357714466,1744383018413,-2100.0,0.00038546,7]
[357714467,1744383018441,-2100.0,0.00038602,7]
[357714468,1744383018469,-2100.0,0.00038739,7]
[357714469,1744383018496,-1000.0,0.0003881,7]
[357714470,1744383018525,-1732.18264264,0.00038831,14]
[357714471,1744383018553,-1361.95,0.000389,7]
[357714472,1744383018581,-190.0,0.00038943,7]
[357714473,1744383018609,-500.0,0.00038972,7]
[357714474,1744383018636,-198.0,0.00039,30]
[357714475,1744383018667,-157.31981724,0.00039,10]
[357714476,1744383018696,-267.0,0.00039,2]
[357714477,1744383018723,-267.0,0.00039,2]
[357714478,1744383018751,-267.0,0.00039,2]
[357714479,1744383018778,-2100.0,0.00039267,7]
[357714480,1744383018811,-3288.79,0.000393,30]
[357714481,1744383018838,-500.0,0.00039393,7]
[357714482,1744383018865,-478.48550007,0.00039448,5]
[357714483,1744383018897,-209.20026203,0.00039471,5]
[357714484,1744383019143,-1230.35297676,0.00039471,5]
[357714485,1744383019178,-478.63610954,0.00039471,5]
[357714486,1744383019206,-1500.0,0.00039471,5]
[357714487,1744383019233,-1500.0,0.00039471,5]
[357714488,1744383019260,-1500.0,0.00039471,5]
[357714489,1744383019286,-1500.0,0.00039471,5]
[357714490,1744383019312,-1500.0,0.00039471,5]
[357714491,1744383019338,-2100.0,0.00039475,7]
[357714492,1744383019364,-2100.0,0.00039581,7]
[357714493,1744383019390,-1732.18264264,0.0003959,15]
[357714494,1744383019417,-2980.0,0.0003961,2]
[357714495,1744383019444,-2100.0,0.00039613,7]
[357714496,1744383019469,-500.0,0.00039624,7]
[357714497,1744383019495,-156.49085179,0.00039627,2]
[357714498,1744383019521,-2100.0,0.00039682,7]
[357714499,1744383019545,-261.2,0.000397,2]
[357714500,1744383019571,-2100.0,0.00039755,7]
[357714501,1744383019597,-161.07117415,0.000398,60]
[357714502,1744383019622,-500.0,0.00039828,7]
[357714503,1744383019647,-1000.0,0.00039856,7]
[357714504,1744383019676,-2100.0,0.00039877,7]
[357714505,1744383019703,-2100.0,0.00039955,7]
[357714506,1744383019729,-1128.0,0.0004,5]
[357714507,1744383019757,-896.52769374,0.0004,2]
[357714508,1744383019783,-200.83471328,0.0004,14]
[357714509,1744383019809,-184.0,0.0004,120]
[357714510,1744383019835,-2000.0,0.0004,15]
[357714511,1744383019859,-2000.0,0.0004,15]
[357714512,1744383019883,-2000.0,0.0004,15]
[357714513,1744383019911,-2000.0,0.0004,15]
[357714514,1744383019935,-2000.0,0.0004,15]
[357714515,1744383019961,-2000.0,0.0004,15]
[357714516,1744383019985,-2000.0,0.0004,15]
[357714517,1744383020010,-2000.0,0.0004,15]
[357714518,1744383020034,-2000.0,0.0004,15]
[357714519,1744383020059,-2000.0,0.0004,15]
[357714520,1744383020083,-2000.0,0.0004,120]
[357714521,1744383020107,-2000.0,0.0004,120]
[357714522,1744383020132,-1000.0,0.0004,120]
[357714523,1744383020156,-541.3369215,0.0004,120]
[357714524,1744383020182,-300.0,0.0004,120]
[357714525,1744383020207,-200.0,0.0004,15]
[357714526,1744383020232,-3000.0,0.0004,30]
[357714527,1744383020256,-892.40189937,0.0004,120]
[357714528,1744383020281,-1634.84357384,0.0004,2]
[357714529,1744383020306,-1029.0,0.0004,120]
[357714530,1744383020331,-851.0,0.0004,120]
[357714531,1744383020356,-493.55946868,0.0004,60]
[357714532,1744383020382,-1607.33871831,0.0004,120]
[357714533,1744383020412,-4396.78602287,0.0004,3]
[357714534,1744383020439,-1500.0,0.00040171,5]
[357714535,1744383020465,-1500.0,0.00040171,2]
[357714536,1744383020490,-1500.0,0.00040171,5]
[357714537,1744383020529,-543.99776575,0.00040171,5]
[357714538,1744383020558,-1500.0,0.00040171,5]
[357714539,1744383020585,-1732.18264264,0.00040348,15]
[357714540,1744383020611,-1006.06197482,0.00040371,5]
[357714541,1744383020639,-1500.0,0.00040371,5]
[357714542,1744383020670,-1564.11156138,0.00040371,5]
[357714543,1744383020700,-1500.0,0.00040371,5]
[357714544,1744383020726,-1514.64873275,0.00040371,5]
[357714545,1744383020754,-1500.0,0.00040371,5]
[357714546,1744383020780,-1500.0,0.00040371,5]
[357714547,1744383020806,-1500.0,0.00040371,5]
[357714548,1744383020833,-1500.0,0.00040371,5]
[357714549,1744383020860,-1500.0,0.00040371,5]
[357714550,1744383020887,-1361.95,0.000404,7]
[357714551,1744383020914,-3288.79,0.000404,30]
[357714552,1744383020943,-2100.0,0.00040406,30]
[357714553,1744383020971,-925.42498382,0.0004043,30]
[357714554,1744383021000,-151.0,0.00040548,14]
[357714555,1744383021028,-151.0,0.00040548,14]
[357714556,1744383021055,-151.0,0.00040548,14]
[357714557,1744383021083,-151.0,0.00040548,14]
[357714558,1744383021111,-151.0,0.00040548,14]
[357714559,1744383021138,-152.16969,0.00040548,14]
[357714560,1744383021167,-500.0,0.00040565,30]
[357714561,1744383021197,-1000.0,0.00040624,30]
[357714562,1744383021224,-1333.0,0.00040658,120]
[357714563,1744383021252,-2100.0,0.00040694,30]
[357714564,1744383021285,-215.5,0.000407,31]
[357714565,1744383021317,-215.5,0.000407,31]
[357714566,1744383021348,-215.5,0.000407,31]
[357714567,1744383021380,-215.5,0.000407,31]
[357714568,1744383021410,-215.5,0.000407,31]
[357714569,1744383021440,-215.5,0.000407,31]
[357714570,1744383021471,-215.5,0.000407,31]
[357714571,1744383021501,-215.5,0.000407,31]
[357714572,1744383021531,-215.5,0.000407,31]
[357714573,1744383021741,-215.5,0.000407,31]
[357714574,1744383021786,-215.5,0.000407,31]
[357714575,1744383021817,-215.5,0.000407,31]
[357714576,1744383021847,-215.5,0.000407,31]
[357714577,1744383021877,-215.5,0.000407,31]
[357714578,1744383021910,-215.5,0.000407,31]
[357714579,1744383021940,-215.5,0.000407,31]
[357714580,1744383021971,-215.5,0.000407,31]
[357714581,1744383022003,-215.5,0.000407,31]
[357714582,1744383022037,-215.5,0.000407,31]
[357714583,1744383022068,-215.5,0.000407,31]
[357714584,1744383022097,-215.5,0.000407,31]
[357714585,1744383022126,-215.5,0.000407,31]
[357714586,1744383022156,-215.5,0.000407,31]
[357714587,1744383022187,-215.5,0.000407,31]
[357714588,1744383022211,-153.0,0.00040707,30]
[357714589,1744383022236,-200.0,0.0004076,57]
[357714590,1744383022261,-158.929506,0.00040958,2]
[357714591,1744383022287,-500.0,0.00040979,30]
[357714592,1744383022311,-200.0,0.00041,14]
[357714593,1744383022338,-93802.8,0.00041,30]
[357714594,1744383022362,-1156.0,0.0004107,120]
[357714595,1744383022389,-150.5,0.0004107,120]
[357714596,1744383022414,-1156.0,0.0004108,120]
[357714597,1744383022439,-150.5,0.0004108,120]
[357714598,1744383022464,-1156.0,0.0004109,120]
[357714599,1744383022489,-150.5,0.0004109,120]
[357714600,1744383022516,-1178.18,0.00041095,30]
[357714601,1744383022542,-1178.18,0.00041095,30]
[357714602,1744383022568,-1178.18,0.00041095,30]
[357714603,1744383022595,-1178.18,0.00041095,30]
[357714604,1744383022620,-1178.18,0.00041095,30]
[357714605,1744383022647,-1178.18,0.00041095,30]
[357714606,1744383022675,-1178.18,0.00041095,30]
[357714607,1744383022702,-1178.18,0.00041095,30]
[357714608,1744383022727,-1178.18,0.00041095,30]
[357714609,1744383022756,-1178.18,0.00041095,30]
[357714610,1744383022782,-1178.18,0.00041095,30]
[357714611,1744383022807,-1178.18,0.00041095,30]
[357714612,1744383022834,-1178.18,0.00041095,30]
[357714613,1744383022860,-1178.18,0.00041095,30]
[357714614,1744383022886,-1178.18,0.00041095,30]
[357714615,1744383022912,-1178.18,0.00041095,30]
[357714616,1744383022938,-1178.18,0.00041095,30]
[357714617,1744383022965,-1178.18,0.00041095,30]
[357714618,1744383022992,-1178.18,0.00041095,30]
[357714619,1744383023019,-1178.18,0.00041095,30]
[357714620,1744383023046,-1178.18,0.00041095,30]
[357714621,1744383023072,-1178.18,0.00041095,30]
[357714622,1744383023099,-1178.18,0.00041095,30]
[357714623,1744383023126,-1178.28199478,0.00041095,30]
[357714624,1744383023153,-500.0,0.00041095,30]
[357714625,1744383023180,-500.0,0.00041095,30]
[357714626,1744383023205,-500.0,0.00041095,30]
[357714627,1744383023232,-500.0,0.00041095,30]
[357714628,1744383023258,-500.0,0.00041095,30]
[357714629,1744383023284,-500.0,0.00041095,30]
[357714630,1744383023310,-500.0,0.00041095,30]
[357714631,1744383023335,-500.0,0.00041095,30]
[357714632,1744383023361,-500.0,0.00041095,30]
[357714633,1744383023388,-500.0,0.00041095,30]
[357714634,1744383023414,-500.0,0.00041095,30]
[357714635,1744383023442,-523.70517805,0.00041095,30]
[357714636,1744383023468,-339.19954222,0.00041095,30]
[357714637,1744383023494,-500.0,0.00041095,30]
[357714638,1744383023519,-500.0,0.00041095,30]
[357714639,1744383023546,-508.15897097,0.00041095,30]
[357714640,1744383023572,-1423.54,0.00041095,30]
[357714641,1744383023598,-1423.54,0.00041095,30]
[357714642,1744383023624,-1423.54,0.00041095,30]
[357714643,1744383023651,-1423.54,0.00041095,30]
[357714644,1744383023684,-1423.54,0.00041095,30]
[357714645,1744383023713,-1423.54,0.00041095,30]
[357714646,1744383023741,-1423.54,0.00041095,30]
[357714647,1744383023768,-1423.54,0.00041095,30]
[357714648,1744383023794,-1423.54,0.00041095,30]
[357714649,1744383023820,-1423.54,0.00041095,30]
[357714650,1744383023848,-1423.54,0.00041095,30]
[357714651,1744383023876,-1423.54,0.00041095,30]
[357714652,1744383023906,-1423.54,0.00041095,30]
[357714653,1744383023939,-1423.54,0.00041095,30]
[357714654,1744383023967,-1423.54,0.00041095,30]
[357714655,1744383023995,-1423.54,0.00041095,30]
[357714656,1744383024023,-1423.54,0.00041095,30]
[357714657,1744383024051,-1423.54,0.00041095,30]
[357714658,1744383024076,-1423.54,0.00041095,30]
[357714659,1744383024103,-1423.54,0.00041095,30]
[357714660,1744383024279,-1423.54,0.00041095,30]
[357714661,1744383024307,-1423.54,0.00041095,30]
[357714662,1744383024335,-1423.54,0.00041095,30]
[357714663,1744383024363,-1423.54139178,0.00041095,30]
[357714664,1744383024390,-500.0,0.00041095,30]
[357714665,1744383024416,-500.0,0.00041095,30]
[357714666,1744383024443,-500.0,0.00041095,30]
[357714667,1744383024471,-500.0,0.00041095,30]
[357714668,1744383024497,-500.0,0.00041095,30]
[357714669,1744383024522,-508.01260435,0.00041095,30]
[357714670,1744383024549,-500.0,0.00041095,30]
[357714671,1744383024575,-500.0,0.00041095,30]
[357714672,1744383024600,-500.0,0.00041095,30]
[357714673,1744383024625,-332.04201964,0.00041095,30]
[357714674,1744383024651,-500.0,0.00041095,30]
[357714675,1744383024681,-500.0,0.00041095,30]
[357714676,1744383024708,-500.0,0.00041095,30]
[357714677,1744383024735,-500.0,0.00041095,30]
[357714678,1744383024763,-500.0,0.00041095,30]
[357714679,1744383024791,-500.0,0.00041095,30]
[357714680,1744383024819,-581.07071618,0.00041095,30]
[357714681,1744383024847,-588.3926265,0.00041095,2]
[357714682,1744383024874,-500.0,0.00041095,2]
[357714683,1744383024901,-500.0,0.00041095,2]
[357714684,1744383024926,-500.0,0.00041095,2]
[357714685,1744383024954,-500.0,0.00041095,2]
[357714686,1744383024980,-500.0,0.00041095,2]
[357714687,1744383025007,-500.0,0.00041095,2]
[357714688,1744383025032,-500.0,0.00041095,2]
[357714689,1744383025059,-500.0,0.00041095,2]
[357714690,1744383025085,-500.0,0.00041095,2]
[357714691,1744383025112,-500.0,0.00041095,2]
[357714692,1744383025139,-500.0,0.00041095,2]
[357714693,1744383025166,-500.0,0.00041095,2]
[357714694,1744383025194,-500.0,0.00041095,2]
[357714695,1744383025220,-500.0,0.00041095,2]
[357714696,1744383025246,-500.0,0.00041095,2]
[357714697,1744383025272,-500.0,0.00041095,2]
[357714698,1744383025298,-500.0,0.00041095,2]
[357714699,1744383025324,-500.0,0.00041095,2]
[357714700,1744383025350,-500.0,0.00041095,2]
[357714701,1744383025376,-507.50333819,0.00041095,2]
[357714702,1744383025404,-500.0,0.00041095,30]
[357714703,1744383025432,-500.0,0.00041095,30]
[357714704,1744383025459,-500.0,0.00041095,30]
[357714705,1744383025485,-500.0,0.00041095,30]
[357714706,1744383025512,-500.0,0.00041095,30]
[357714707,1744383025538,-500.0,0.00041095,30]
[357714708,1744383025565,-500.0,0.00041095,30]
[357714709,1744383025592,-500.0,0.00041095,30]
[357714710,1744383025618,-500.0,0.00041095,30]
[357714711,1744383025644,-500.0,0.00041095,30]
[357714712,1744383025676,-500.0,0.00041095,30]
[357714713,1744383025703,-500.0,0.00041095,30]
[357714714,1744383025729,-500.0,0.00041095,30]
[357714715,1744383025757,-500.0,0.00041095,2]
[357714716,1744383025784,-500.0,0.00041095,30]
[357714717,1744383025808,-553.80386731,0.00041095,2]
[357714718,1744383025835,-500.0,0.00041095,30]
[357714719,1744383025862,-500.0,0.00041095,30]
[357714720,1744383025890,-500.0,0.00041095,30]
[357714721,1744383025918,-309.55144949,0.00041095,30]
[357714722,1744383025944,-500.0,0.00041095,2]
[357714723,1744383025970,-500.0,0.00041095,2]
[357714724,1744383025996,-500.0,0.00041095,2]
[357714725,1744383026023,-500.0,0.00041095,2]
[357714726,1744383026049,-500.0,0.00041095,2]
[357714727,1744383026076,-500.0,0.00041095,2]
[357714728,1744383026103,-500.0,0.00041095,2]
[357714729,1744383026130,-500.0,0.00041095,2]
[357714730,1744383026157,-482.67,0.00041095,2]
[357714731,1744383026184,-1510.36,0.00041095,30]
[357714732,1744383026211,-1510.36,0.00041095,30]
[357714733,1744383026239,-1510.36,0.00041095,30]
[357714734,1744383026267,-1510.36,0.00041095,30]
[357714735,1744383026295,-1510.36,0.00041095,30]
[357714736,1744383026323,-1510.36,0.00041095,30]
[357714737,1744383026350,-1510.36,0.00041095,30]
[357714738,1744383026378,-1510.36,0.00041095,30]
[357714739,1744383026405,-1510.36,0.00041095,30]
[357714740,1744383026433,-1510.36,0.00041095,30]
[357714741,1744383026460,-1510.36,0.00041095,30]
[357714742,1744383026487,-1510.36,0.00041095,30]
[357714743,1744383026651,-1510.36,0.00041095,30]
[357714744,1744383026714,-1510.36,0.00041095,30]
[357714745,1744383026744,-1510.36,0.00041095,30]
[357714746,1744383026772,-1510.36,0.00041095,30]
[357714747,1744383026800,-1510.36,0.00041095,30]
[357714748,1744383026829,-1510.36,0.00041095,30]
[357714749,1744383026856,-1510.36,0.00041095,30]
[357714750,1744383026883,-1510.36,0.00041095,30]
[357714751,1744383026911,-1510.36,0.00041095,30]
[357714752,1744383026940,-1510.36,0.00041095,30]
[357714753,1744383026967,-1510.36,0.00041095,30]
[357714754,1744383026995,-1510.57564028,0.00041095,30]
[357714755,1744383027021,-500.0,0.00041095,30]
[357714756,1744383027048,-500.0,0.00041095,30]
[357714757,1744383027074,-500.0,0.00041095,30]
[357714758,1744383027101,-500.0,0.00041095,30]
[357714759,1744383027127,-500.0,0.00041095,30]
[357714760,1744383027153,-500.0,0.00041095,30]
[357714761,1744383027180,-500.0,0.00041095,30]
[357714762,1744383027208,-500.0,0.00041095,30]
[357714763,1744383027234,-500.0,0.00041095,30]
[357714764,1744383027261,-500.0,0.00041095,30]
[357714765,1744383027287,-500.0,0.00041095,30]
[357714766,1744383027313,-500.0,0.00041095,30]
[357714767,1744383027340,-500.0,0.00041095,30]
[357714768,1744383027369,-500.0,0.00041095,30]
[357714769,1744383027395,-500.0,0.00041095,30]
[357714770,1744383027421,-500.0,0.00041095,30]
[357714771,1744383027449,-500.0,0.00041095,30]
[357714772,1744383027476,-500.0,0.00041095,30]
[357714773,1744383027501,-500.0,0.00041095,30]
[357714774,1744383027527,-333.11471896,0.00041095,30]
[357714775,1744383027556,-500.0,0.00041095,30]
[357714776,1744383027582,-500.0,0.00041095,30]
[357714777,1744383027608,-500.0,0.00041095,30]
[357714778,1744383027636,-562.03686702,0.00041095,30]
[357714779,1744383027664,-500.0,0.00041095,30]
[357714780,1744383027693,-500.0,0.00041095,30]
[357714781,1744383027720,-500.0,0.00041095,30]
[357714782,1744383027749,-500.0,0.00041095,30]
[357714783,1744383027775,-500.0,0.00041095,30]
[357714784,1744383027802,-500.0,0.00041095,30]
[357714785,1744383027830,-500.0,0.00041095,30]
[357714786,1744383027857,-528.7383382,0.00041095,30]
[357714787,1744383027883,-500.0,0.00041095,2]
[357714788,1744383027909,-500.0,0.00041095,2]
[357714789,1744383027937,-500.0,0.00041095,2]
[357714790,1744383027964,-500.0,0.00041095,2]
[357714791,1744383027991,-500.0,0.00041095,2]
[357714792,1744383028018,-500.0,0.00041095,2]
[357714793,1744383028045,-163.307482,0.00041095,2]
[357714794,1744383028071,-1000.0,0.00041095,5]
[357714795,1744383028097,-1000.0,0.00041095,5]
[357714796,1744383028124,-1000.0,0.00041095,5]
[357714797,1744383028151,-1000.0,0.00041095,5]
[357714798,1744383028178,-1000.0,0.00041095,5]
[357714799,1744383028207,-352.91215562,0.00041095,5]
[357714800,1744383028233,-4146.27,0.00041095,7]
[357714801,1744383028260,-4146.27,0.00041095,7]
[357714802,1744383028287,-4146.27,0.00041095,7]
[357714803,1744383028314,-4146.27,0.00041095,7]
[357714804,1744383028341,-4146.27,0.00041095,7]
[357714805,1744383028371,-4146.27,0.00041095,7]
[357714806,1744383028400,-4146.27,0.00041095,7]
[357714807,1744383028428,-4146.27,0.00041095,7]
[357714808,1744383028456,-4146.27,0.00041095,7]
[357714809,1744383028503,-4146.27,0.00041095,7]
[357714810,1744383028536,-4146.27,0.00041095,7]
[357714811,1744383028565,-4146.27,0.00041095,7]
[357714812,1744383028594,-4146.27,0.00041095,7]
[357714813,1744383028622,-4146.27,0.00041095,7]
[357714814,1744383028653,-4146.27,0.00041095,7]
[357714815,1744383028682,-4146.27,0.00041095,7]
[357714816,1744383028713,-4146.27,0.00041095,7]
[357714817,1744383028741,-4146.27,0.00041095,7]
[357714818,1744383028771,-4146.27,0.00041095,7]
[357714819,1744383028802,-4146.27,0.00041095,7]
[357714820,1744383028829,-4146.27,0.00041095,7]
[357714821,1744383028858,-4146.27,0.00041095,7]
[357714822,1744383028889,-4146.27,0.00041095,7]
[357714823,1744383028919,-4146.49723325,0.00041095,7]
[357714824,1744383029145,-700.0,0.00041095,120]
[357714825,1744383029173,-700.0,0.00041095,120]
[357714826,1744383029206,-700.0,0.00041095,120]
[357714827,1744383029234,-700.0,0.00041095,120]
[357714828,1744383029260,-700.0,0.00041095,120]
[357714829,1744383029287,-700.0,0.00041095,120]
[357714830,1744383029313,-700.0,0.00041095,120]
[357714831,1744383029339,-222.24774076,0.00041095,120]
[357714832,1744383029367,-982.10038735,0.00041095,120]
[357714833,1744383029393,-1000.0,0.00041096,6]
[357714834,1744383029419,-1000.0,0.00041096,6]
[357714835,1744383029445,-219.630425,0.00041096,120]
[357714836,1744383029472,-500.0,0.00041096,31]
[357714837,1744383029498,-500.0,0.00041096,31]
[357714838,1744383029524,-479.4582785,0.00041096,31]
[357714839,1744383029554,-1732.18264264,0.00041107,16]
[357714840,1744383029582,-1000.0,0.00041157,30]
[357714841,1744383029609,-1000.0,0.00041233,20]
[357714842,1744383029637,-1000.0,0.00041233,20]
[357714843,1744383029666,-2519.58309749,0.00041235,28]
[357714844,1744383029697,-500.0,0.00041278,30]
[357714845,1744383029725,-500.0,0.00041286,30]
[357714846,1744383029754,-1000.0,0.00041352,30]
[357714847,1744383029780,-1000.0,0.00041365,30]
[357714848,1744383029806,-1000.0,0.0004137,20]
[357714849,1744383029831,-1000.0,0.0004137,20]
[357714850,1744383029857,-1000.0,0.00041507,20]
[357714851,1744383029884,-1000.0,0.00041507,20]
[357714852,1744383029911,-1000.0,0.00041644,20]
[357714853,1744383029938,-1000.0,0.00041644,20]
[357714854,1744383029967,-1361.95,0.000417,30]
[357714855,1744383029994,-783.61,0.000417,7]
[357714856,1744383030021,-1000.0,0.00041781,20]
[357714857,1744383030046,-1000.0,0.00041781,20]
[357714858,1744383030073,-12115.96543915,0.000418,14]
[357714859,1744383030099,-1473.52,0.000418,30]
[357714860,1744383030126,-2245.95,0.000418,30]
[357714861,1744383030155,-1732.18264264,0.00041866,16]
[357714862,1744383030181,-1000.0,0.00041918,20]
[357714863,1744383030208,-1000.0,0.00041918,20]
[357714864,1744383030234,-1156.0,0.0004197,120]
[357714865,1744383030260,-155.35,0.0004197,120]
[357714866,1744383030286,-1156.0,0.0004198,120]
[357714867,1744383030313,-150.5,0.0004198,120]
[357714868,1744383030339,-1156.0,0.0004199,120]
[357714869,1744383030366,-150.5,0.0004199,120]
[357714870,1744383030393,-200.0,0.00042,14]
[357714871,1744383030420,-11423.659865,0.00042,7]
[357714872,1744383030450,-502.82152971,0.00042,120]
[357714873,1744383030477,-2000.0,0.00042,120]
[357714874,1744383030505,-1706.0,0.00042,15]
[357714875,1744383030533,-300.0,0.00042,120]
[357714876,1744383030560,-1000.0,0.00042,120]
[357714877,1744383030586,-2355.19342155,0.00042,5]
[357714878,1744383030612,-500.0,0.00042,14]
[357714879,1744383030639,-710.57771662,0.00042,15]
[357714880,1744383030666,-188.0,0.00042,31]
[357714881,1744383030694,-188.0,0.00042,60]
[357714882,1744383030723,-210.0,0.00042,31]
[357714883,1744383030752,-210.57649029,0.00042,60]
[357714884,1744383030779,-267.0,0.00042,2]
[357714885,1744383030805,-267.0,0.00042,2]
[357714886,1744383030833,-267.0,0.00042,2]
[357714887,1744383030860,-1000.0,0.00042055,20]
[357714888,1744383030889,-1000.0,0.00042055,20]
[357714889,1744383030917,-169.96496912,0.0004211,30]
[357714890,1744383030946,-916.88635533,0.00042171,10]
[357714891,1744383030974,-1500.0,0.00042171,10]
[357714892,1744383031003,-1500.0,0.00042171,10]
[357714893,1744383031032,-1500.0,0.00042171,10]
[357714894,1744383031060,-508.38532205,0.00042171,10]
[357714895,1744383031088,-1500.0,0.00042171,10]
[357714896,1744383031116,-1000.0,0.00042192,20]
[357714897,1744383031144,-1000.0,0.00042192,20]
[357714898,1744383031171,-1509.91527315,0.00042271,10]
[357714899,1744383031199,-1000.0,0.00042296,30]
[357714900,1744383031227,-1000.0,0.00042329,20]
[357714901,1744383031255,-1000.0,0.00042329,20]
[357714902,1744383031427,-1000.0,0.00042466,20]
[357714903,1744383031454,-1000.0,0.00042466,20]
[357714904,1744383031481,-2000.0,0.000425,15]
[357714905,1744383031508,-2000.0,0.000425,15]
[357714906,1744383031534,-2000.0,0.000425,120]
[357714907,1744383031559,-2000.0,0.000425,120]
[357714908,1744383031584,-2000.0,0.000425,120]
[357714912,1744383031609,-2000.0,0.000425,120]
[357714914,1744383031634,-2000.0,0.000425,15]
[357714915,1744383031661,-200.0,0.000425,120]
[357714916,1744383031687,-2000.0,0.000425,120]
[357714917,1744383031715,-5000.0,0.000425,100]
[357714918,1744383031742,-1000.0,0.00042567,30]
[357714919,1744383031768,-1000.0,0.00042603,20]
[357714924,1744383031796,-1000.0,0.00042603,20]
[357714928,1744383031825,-1732.18264264,0.00042624,17]
[357714932,1744383031852,-169.96496912,0.00042658,30]
[357714934,1744383031879,-1000.0,0.0004274,20]
[357714938,1744383031905,-1000.0,0.0004274,20]